fUSD/lending_fUSD_20251011
["ID","MTS","AMOUNT","RATE_DAILY","PERIOD"]
[390767251,1760142632209,-255.29508956,0.0001371,2]
[390767252,1760142632228,-244.70491044,0.0001371,2]
[390767253,1760142632237,-500.0,0.0001371,2]
[390767254,1760142632247,-500.0,0.0001371,2]
[390767255,1760142632257,-273.86311535,0.0001371,2]
[390767256,1760142632267,-174.57171965,0.0001371,2]
[390767257,1760142632283,-150.0,0.0001371,2]
[390767258,1760142632292,-1200.0,0.00013711,2]
[390767259,1760142632302,-195.0,0.00013712,2]
[390767260,1760142632312,-300.0,0.00013712,2]
[390767261,1760142632322,-2099.38817291,0.00013712,2]
[390767262,1760142632332,-195.0,0.00013712,2]
[390767263,1760142632342,-300.0,0.00013712,2]
[390767264,1760142632352,-2000.0,0.00013713,2]
[390767265,1760142632361,-1600.0,0.00013743,2]
[390767266,1760142632371,-1151.32,0.00013751,2]
[390767267,1760142632380,-458.16,0.00013769,2]
[390767268,1760142632393,-1057.26,0.00013769,2]
[390767269,1760142632403,-14194.29059127,0.00013913,2]
[390767270,1760142632413,-33385.6654,0.00013921,2]
[390767271,1760142632423,-4050.4157,0.00013921,2]
[390767272,1760142632433,-2131.5086,0.00013921,2]
[390767273,1760142632443,-5009.1955,0.00013921,2]
[390767274,1760142632453,-9999.99,0.00013979,2]
[390767275,1760142632463,-1513.12,0.00013979,2]
[390767276,1760142632473,-150.99,0.00013979,2]
[390767277,1760142632483,-999.99,0.00013979,2]
[390767278,1760142632493,-4611.89351566,0.0001398,2]
[390767279,1760142632506,-266.92376967,0.0001398,2]
[390767281,1760142632536,-1605.89447669,0.0001398,2]
[390767289,1760142632566,-455.23217681,0.0001398,2]
[390767291,1760142632577,-2356.00530832,0.0001398,2]
[390767294,1760142632593,-3631.7649521,0.0001398,2]
[390767298,1760142632611,-4520.00000004,0.0001398,2]
[390767301,1760142632635,-2735.10580071,0.0001398,2]
[390767303,1760142632649,-6355.74,0.0001398,2]
[390767305,1760142632660,-5431.43930641,0.0001398,2]
[390767307,1760142632671,-2482.87171954,0.0001398,2]
[390767308,1760142637081,277.30036879,0.00010499,2]
[390767309,1760142637140,502.76289178,0.00010499,2]
[390767310,1760142637190,174.87849927,0.00010499,2]
[390767311,1760142637234,236.7586768,0.00010499,2]
[390767312,1760142637408,500.0,0.00010499,2]
[390767395,1760142639245,-41303.09897405,0.0001398,2]
[390767397,1760142639255,-200.0,0.00014013,2]
[390767399,1760142639264,-151.0,0.00014013,2]
[390767401,1760142639275,-151.0,0.00014013,2]
[390767403,1760142639288,-151.0,0.00014013,2]
[390767405,1760142639297,-151.0,0.00014013,2]
[390767407,1760142639307,-151.0,0.00014013,2]
[390767409,1760142639317,-500.0,0.00014013,2]
[390767411,1760142639328,-151.0,0.00014013,2]
[390767413,1760142639338,-500.0,0.00014013,2]
[390767415,1760142639348,-151.0,0.00014013,2]
[390767416,1760142639359,-500.0,0.00014013,2]
[390767419,1760142639372,-151.0,0.00014013,2]
[390767421,1760142639383,-500.0,0.00014013,2]
[390767423,1760142639397,-151.0,0.00014013,2]
[390767424,1760142639409,-151.0,0.00014013,2]
[390767426,1760142639419,-500.0,0.00014013,2]
[390767428,1760142639430,-151.0,0.00014013,2]
[390767431,1760142639441,-500.0,0.00014013,2]
[390767433,1760142639451,-151.0,0.00014013,2]
[390767434,1760142639461,-500.0,0.00014013,2]
[390767437,1760142639477,-200.0,0.00014013,2]
[390767438,1760142639487,-151.0,0.00014013,2]
[390767440,1760142639497,-500.0,0.00014013,2]
[390767442,1760142639507,-151.0,0.00014013,2]
[390767444,1760142639516,-500.0,0.00014013,2]
[390767446,1760142639527,-151.0,0.00014013,2]
[390767448,1760142639537,-500.0,0.00014013,2]
[390767451,1760142639547,-151.0,0.00014013,2]
[390767453,1760142639557,-500.0,0.00014013,2]
[390767455,1760142639567,-151.0,0.00014013,2]
[390767456,1760142639578,-500.0,0.00014013,2]
[390767458,1760142639588,-151.0,0.00014013,2]
[390767460,1760142639597,-500.0,0.00014013,2]
[390767462,1760142639606,-151.0,0.00014013,2]
[390767464,1760142639616,-500.0,0.00014013,2]
[390767467,1760142639626,-151.0,0.00014013,2]
[390767469,1760142639636,-200.0,0.00014013,2]
[390767471,1760142639648,-151.0,0.00014013,2]
[390767472,1760142639657,-151.0,0.00014013,2]
[390767474,1760142639666,-151.0,0.00014013,2]
[390767476,1760142639676,-151.0,0.00014013,2]
[390767478,1760142639685,-151.0,0.00014013,2]
[390767480,1760142639695,-151.0,0.00014013,2]
[390767482,1760142639704,-151.0,0.00014013,2]
[390767484,1760142639714,-151.0,0.00014013,2]
[390767486,1760142639724,-151.0,0.00014013,2]
[390767488,1760142639734,-151.0,0.00014013,2]
[390767490,1760142639744,-151.0,0.00014013,2]
[390767492,1760142639754,-151.0,0.00014013,2]
[390767494,1760142639763,-151.0,0.00014013,2]
[390767496,1760142639773,-151.0,0.00014013,2]
[390767498,1760142639783,-151.0,0.00014013,2]
[390767500,1760142639792,-151.0,0.00014013,2]
[390767502,1760142639802,-151.0,0.00014013,2]
[390767504,1760142639811,-151.0,0.00014013,2]
[390767507,1760142639821,-225.816144,0.00014013,2]
[390767510,1760142639831,-151.0,0.00014013,2]
[390767513,1760142639840,-151.0,0.00014013,2]
[390767516,1760142639850,-151.0,0.00014013,2]
[390767519,1760142639862,-14194.29059124,0.00014023,2]
[390767522,1760142639872,-150.0,0.00014057,2]
[390767525,1760142639881,-4420.37,0.00014065,2]
[390767528,1760142639891,-17303.93,0.00014076,2]
[390767531,1760142639904,-14194.29059124,0.00014132,2]
[390767534,1760142639913,-250.0,0.0001421,2]
[390767536,1760142639923,-14194.29059124,0.00014242,2]
[390767538,1760142639933,-2500.0,0.000143,5]
[390767540,1760142639943,-14194.29059124,0.00014352,2]
[390767543,1760142639953,-4058.68784995,0.0001439,2]
[390767545,1760142639965,-5100.0,0.000144,5]
[390767547,1760142639975,-14194.29059124,0.00014461,2]
[390767549,1760142639984,-374.10048395,0.00014484,2]
[390767551,1760142639993,-829.81608189,0.0001449,2]
[390767553,1760142640002,-7700.0,0.000145,5]
[390767555,1760142640012,-945.0,0.00014512,2]
[390767557,1760142640022,-374.10048388,0.00014543,2]
[390767559,1760142640032,-200.0,0.00014561,2]
[390767561,1760142640042,-200.0,0.00014561,2]
[390767563,1760142640052,-14194.29059124,0.00014571,2]
[390767565,1760142640061,-238.0,0.00014584,2]
[390767567,1760142640071,-10300.0,0.000146,5]
[390767569,1760142640081,-374.10048388,0.00014603,2]
[390767571,1760142640091,-474.17,0.00014609,2]
[390767573,1760142640101,-749.0,0.00014657,2]
[390767575,1760142640111,-374.10048388,0.00014662,2]
[390767577,1760142640121,-14194.29059124,0.00014681,2]
[390767579,1760142640132,-12800.0,0.000147,5]
[390767581,1760142640142,-374.10048388,0.00014722,2]
[390767583,1760142640156,-1793.0,0.00014729,2]
[390767585,1760142640165,-374.10048388,0.00014781,2]
[390767587,1760142640175,-14194.29059124,0.0001479,2]
[390767589,1760142640185,-842.03031609,0.000148,2]
[390767591,1760142640194,-2500.0,0.000148,5]
[390767593,1760142640204,-543.0,0.00014801,2]
[390767595,1760142640214,-842.03031604,0.00014813,2]
[390767597,1760142640223,-255.0,0.00014821,2]
[390767599,1760142640233,-842.03031604,0.00014826,2]
[390767601,1760142640242,-842.03031604,0.0001484,2]
[390767603,1760142640251,-374.10048388,0.00014841,2]
[390767605,1760142640261,-2223.06622,0.0001485,2]
[390767607,1760142640271,-842.03031604,0.00014853,2]
[390767609,1760142640281,-842.03031604,0.00014866,2]
[390767611,1760142640293,-842.03031604,0.00014879,2]
[390767613,1760142640305,-500.0,0.0001488,2]
[390767615,1760142640315,-3048.38,0.0001489,2]
[390767617,1760142640324,-278.3724,0.0001489,2]
[390767619,1760142640337,-269.071877,0.00014891,2]
[390767621,1760142640346,-842.03031604,0.00014893,2]
[390767623,1760142640356,-2000.0,0.00014899,2]
[390767625,1760142640368,-2000.0,0.00014899,2]
[390767627,1760142640378,-2000.0,0.00014899,2]
[390767629,1760142640389,-2000.0,0.00014899,2]
[390767631,1760142640405,-2000.0,0.00014899,2]
[390767633,1760142640414,-2000.0,0.00014899,2]
[390767635,1760142640424,-2000.0,0.00014899,2]
[390767638,1760142640433,-2000.0,0.00014899,2]
[390767641,1760142640443,-2000.0,0.00014899,2]
[390767643,1760142640453,-2000.0,0.00014899,2]
[390767645,1760142640463,-2000.0,0.00014899,2]
[390767647,1760142640474,-2000.0,0.00014899,2]
[390767649,1760142640483,-170.238,0.00014899,2]
[390767651,1760142640493,-1000.0,0.00014899,2]
[390767653,1760142640503,-1000.0,0.00014899,2]
[390767655,1760142640513,-1098.20437616,0.000149,2]
[390767657,1760142640523,-2000.0,0.000149,2]
[390767659,1760142640533,-500.0,0.000149,2]
[390767661,1760142640544,-500.0,0.000149,2]
[390767663,1760142640554,-500.0,0.000149,2]
[390767665,1760142640564,-500.0,0.000149,2]
[390767667,1760142640574,-500.0,0.000149,2]
[390767715,1760142641012,-500.0,0.000149,2]
[390767717,1760142641022,-500.0,0.000149,2]
[390767719,1760142641032,-500.0,0.000149,2]
[390767721,1760142641042,-500.0,0.000149,2]
[390767723,1760142641052,-500.0,0.000149,2]
[390767725,1760142641061,-500.0,0.000149,2]
[390767727,1760142641071,-500.0,0.000149,2]
[390767729,1760142641080,-500.0,0.000149,2]
[390767731,1760142641090,-500.0,0.000149,2]
[390767733,1760142641099,-500.0,0.000149,2]
[390767735,1760142641109,-500.0,0.000149,2]
[390767737,1760142641119,-500.0,0.000149,2]
[390767739,1760142641129,-500.0,0.000149,2]
[390767741,1760142641138,-429.80279406,0.000149,2]
[390767743,1760142641149,-970.1478,0.000149,2]
[390767745,1760142641158,-176.09635742,0.000149,2]
[390767747,1760142641168,-2500.0,0.000149,5]
[390767749,1760142641178,-300.7590105,0.000149,2]
[390767752,1760142641188,-14194.29059124,0.000149,2]
[390767754,1760142641197,-5754.0792229,0.000149,2]
[390767756,1760142641206,-171.70131482,0.000149,2]
[390767758,1760142641216,-171.70131481,0.000149,2]
[390767760,1760142641225,-460.826468,0.000149,2]
[390767762,1760142641234,-219.30181342,0.000149,2]
[390767764,1760142641244,-842.03031604,0.00014906,2]
[390767766,1760142641254,-300.75901048,0.0001491,2]
[390767768,1760142641263,-300.75901048,0.00014919,2]
[390767770,1760142641273,-842.03031604,0.00014919,2]
[390767772,1760142641286,-2191.0984888,0.00014939,2]
[390767774,1760142641296,-1000.0,0.00014964,2]
[390767776,1760142641305,-1000.0,0.00014964,2]
[390767778,1760142641315,-1000.0,0.00014964,2]
[390767779,1760142641326,-1000.0,0.00014964,2]
[390767780,1760142641337,-1000.0,0.00014964,2]
[390767781,1760142641346,-150.0,0.00014964,5]
[390767782,1760142641359,-495.0,0.00014964,5]
[390767783,1760142641370,-2114.0,0.00014964,5]
[390767784,1760142641381,-150.0,0.00014964,5]
[390767785,1760142641391,-500.0,0.00014964,5]
[390767786,1760142641405,-500.0,0.00014964,2]
[390767787,1760142641414,-150.0,0.00014964,2]
[390767788,1760142641424,-500.0,0.00014964,5]
[390767789,1760142641433,-480.0,0.00014964,5]
[390767790,1760142641444,-150.0,0.00014964,2]
[390767792,1760142641453,-500.0,0.00014964,5]
[390767794,1760142641463,-150.0,0.00014964,2]
[390767796,1760142641474,-1253.0,0.00014964,5]
[390767798,1760142641483,-532.0,0.00014964,5]
[390767800,1760142641492,-500.0,0.00014964,5]
[390767802,1760142641503,-426.0,0.00014964,5]
[390767804,1760142641513,-2687.0,0.0001497,2]
[390767807,1760142641523,-500.0,0.00014973,2]
[390767809,1760142641532,-500.0,0.00014973,2]
[390767811,1760142641542,-500.0,0.00014973,2]
[390767813,1760142641551,-500.0,0.00014973,2]
[390767815,1760142641560,-500.0,0.00014973,2]
[390767817,1760142641569,-500.0,0.00014973,2]
[390767819,1760142641580,-500.0,0.00014973,2]
[390767821,1760142641590,-500.0,0.00014973,2]
[390767823,1760142641600,-500.0,0.00014973,2]
[390767825,1760142641610,-500.0,0.00014973,2]
[390767827,1760142641620,-500.0,0.00014973,2]
[390767829,1760142641629,-500.0,0.00014973,2]
[390767831,1760142641638,-500.0,0.00014973,2]
[390767833,1760142641651,-507.53142317,0.00014973,2]
[390767835,1760142641661,-500.0,0.00014973,2]
[390767837,1760142641671,-505.10858255,0.00014973,2]
[390767839,1760142641681,-2223.06622,0.0001498,2]
[390767841,1760142641690,-500.0,0.00014985,2]
[390767843,1760142641700,-1659.63216378,0.00014985,2]
[390767845,1760142641709,-784.19476746,0.0001499,2]
[390767847,1760142641719,-784.19476746,0.0001499,2]
[390767849,1760142641728,-784.19476746,0.0001499,2]
[390767851,1760142641738,-150.0,0.00014991,2]
[390767853,1760142641747,-150.0,0.00014991,2]
[390767855,1760142641756,-150.0,0.00014991,2]
[390767858,1760142641767,-150.0,0.00014991,2]
[390767860,1760142641777,-150.0,0.00014991,2]
[390767862,1760142641786,-150.0,0.00014991,2]
[390767864,1760142641796,-500.0,0.00014991,2]
[390767866,1760142641805,-150.0,0.00014991,2]
[390767868,1760142641815,-500.0,0.00014991,2]
[390767870,1760142641824,-150.0,0.00014991,2]
[390767872,1760142641833,-150.0,0.00014991,2]
[390767873,1760142641843,-150.0,0.00014991,2]
[390767876,1760142641853,-150.0,0.00014991,2]
[390767878,1760142641863,-150.0,0.00014991,2]
[390767880,1760142641873,-150.0,0.00014991,2]
[390767882,1760142641882,-500.0,0.00014991,2]
[390767884,1760142641891,-150.0,0.00014991,2]
[390767886,1760142641906,-1718.29,0.00014991,2]
[390767888,1760142641915,-153.72761504,0.00014991,2]
[390767890,1760142641925,-152.95865123,0.00014991,2]
[390767892,1760142641934,-150.0,0.00014991,2]
[390767894,1760142641943,-150.0,0.00014991,2]
[390767896,1760142641953,-150.0,0.00014991,2]
[390767898,1760142641962,-892.0,0.00014991,2]
[390767900,1760142641972,-500.0,0.00014991,2]
[390767902,1760142641981,-500.0,0.00014991,2]
[390767904,1760142641991,-150.0,0.00014991,2]
[390767906,1760142642000,-150.0,0.00014991,2]
[390767908,1760142642010,-150.0,0.00014991,2]
[390767910,1760142642020,-500.0,0.00014991,2]
[390767912,1760142642029,-151.0,0.00014997,2]
[390767914,1760142642038,-421.95046382,0.00014999,2]
[390767916,1760142642048,-1000.0,0.00014999,2]
[390767918,1760142642057,-150.0,0.00014999,2]
[390767920,1760142642067,-666.0,0.00014999,2]
[390767922,1760142642076,-986746.75329562,0.00015,2]
[390767924,1760142642085,-24653.41343216,0.00015,2]
[390767926,1760142642096,-90157.36466168,0.00015,2]
[390767928,1760142642105,-500.0,0.00015,2]
[390767930,1760142642115,-500.0,0.00015,2]
[390767932,1760142642125,-500.0,0.00015,2]
[390767934,1760142642135,-500.0,0.00015,2]
[390767936,1760142642146,-500.0,0.00015,2]
[390767938,1760142642156,-369.99080384,0.00015,2]
[390767940,1760142642165,-261.27351506,0.00015,3]
[390767942,1760142642174,-500.0,0.00015,2]
[390767944,1760142642184,-914.60447044,0.00015,2]
[390767946,1760142642193,-155618.5039832,0.00015,2]
[390767948,1760142642203,-500.0,0.00015,2]
[390767950,1760142642212,-3309.262079,0.00015,2]
[390767952,1760142642222,-216.52788374,0.00015,2]
[390767954,1760142642232,-101278.8893127,0.00015,2]
[390767957,1760142642242,-200.0,0.00015,2]
[390767959,1760142642252,-187.00053607,0.00015,2]
[390767961,1760142642262,-162.77342189,0.00015,2]
[390767963,1760142642271,-1000.0,0.00015,2]
[390767965,1760142642286,-1000.0,0.00015,2]
[390767967,1760142642296,-1000.0,0.00015,2]
[390767969,1760142642306,-1000.0,0.00015,2]
[390767971,1760142642317,-1000.0,0.00015,2]
[390767973,1760142642331,-1000.0,0.00015,2]
[390767975,1760142642341,-1000.0,0.00015,2]
[390767977,1760142642350,-1000.0,0.00015,2]
[390767979,1760142642359,-1000.0,0.00015,2]
[390767981,1760142642369,-1000.0,0.00015,2]
[390767983,1760142642379,-1000.0,0.00015,2]
[390767985,1760142642388,-1000.0,0.00015,2]
[390767987,1760142642404,-1000.0,0.00015,2]
[390767989,1760142642415,-1000.0,0.00015,2]
[390767991,1760142642425,-1000.0,0.00015,2]
[390767993,1760142642435,-1000.0,0.00015,2]
[390767995,1760142642445,-1000.0,0.00015,2]
[390767997,1760142642454,-1000.0,0.00015,2]
[390767999,1760142642464,-1000.0,0.00015,2]
[390768001,1760142642474,-1000.0,0.00015,2]
[390768003,1760142642484,-1000.0,0.00015,2]
[390768005,1760142642494,-1000.0,0.00015,2]
[390768007,1760142642504,-1000.0,0.00015,2]
[390768009,1760142642513,-1000.0,0.00015,2]
[390768012,1760142642524,-735.81847986,0.00015,2]
[390768014,1760142642534,-200.0,0.00015,2]
[390768016,1760142642544,-8554649.75959888,0.00015,2]
[390768018,1760142642554,-200.0,0.00015,2]
[390768020,1760142642563,-2022.61626939,0.00015,2]
[390768022,1760142642572,-7215.95249105,0.00015,2]
[390768024,1760142642582,-4743697.85522962,0.00015,2]
[390768026,1760142642592,-160.0,0.00015,2]
[390768028,1760142642601,-150.0,0.00015019,5]
[390768030,1760142642611,-495.0,0.00015019,5]
[390768032,1760142642621,-2114.0,0.00015019,5]
[390768034,1760142642630,-150.0,0.00015019,5]
[390768036,1760142642639,-500.0,0.00015019,5]
[390768038,1760142642652,-500.0,0.00015019,5]
[390768040,1760142642662,-480.0,0.00015019,5]
[390768042,1760142642672,-500.0,0.00015019,5]
[390768044,1760142642681,-1253.0,0.00015019,5]
[390768046,1760142642691,-532.0,0.00015019,5]
[390768047,1760142642700,-500.0,0.00015019,5]
[390768049,1760142642710,-426.0,0.00015019,5]
[390768052,1760142642720,-420.0,0.00015023,2]
[390768054,1760142642730,-420.0,0.00015023,2]
[390768056,1760142642740,-1680.0,0.00015026,2]
[390768059,1760142642750,-150.0,0.00015046,2]
[390768061,1760142642760,-150.0,0.00015046,2]
[390768062,1760142642770,-150.0,0.00015046,2]
[390768065,1760142642781,-150.0,0.00015046,2]
[390768067,1760142642791,-150.0,0.00015046,2]
[390768069,1760142642801,-150.0,0.00015046,2]
[390768071,1760142642813,-500.0,0.00015046,2]
[390768073,1760142642823,-150.0,0.00015046,2]
[390768075,1760142642834,-500.0,0.00015046,2]
[390768077,1760142642845,-150.0,0.00015046,2]
[390768080,1760142642855,-150.0,0.00015046,2]
[390768082,1760142642865,-200.0,0.00015046,2]
[390768084,1760142642874,-150.0,0.00015046,2]
[390768086,1760142642884,-150.0,0.00015046,2]
[390768090,1760142642895,-150.0,0.00015046,2]
[390768092,1760142642908,-500.0,0.00015046,2]
[390768095,1760142642918,-150.0,0.00015046,2]
[390768098,1760142642928,-150.0,0.00015046,2]
[390768101,1760142642940,-892.0,0.00015046,2]
[390768103,1760142642950,-566.72175366,0.00015046,2]
[390768106,1760142642960,-500.0,0.00015046,2]
[390768108,1760142642973,-500.0,0.00015046,2]
[390768110,1760142642983,-618.23163853,0.00015056,2]
[390768112,1760142642992,-300.0,0.00015068,2]
[390768116,1760142643003,-495.0,0.00015074,5]
[390768119,1760142643013,-2114.0,0.00015074,5]
[390768125,1760142643024,-500.0,0.00015074,5]
[390768132,1760142643034,-500.0,0.00015074,5]
[390768137,1760142643044,-480.0,0.00015074,5]
[390768141,1760142643054,-500.0,0.00015074,5]
[390768147,1760142643064,-1253.0,0.00015074,5]
[390768152,1760142643075,-532.0,0.00015074,5]
[390768155,1760142643085,-500.0,0.00015074,5]
[390768158,1760142643094,-426.0,0.00015074,5]
[390768161,1760142643104,-250.0,0.0001508,2]
[390768163,1760142643114,-150.75213433,0.0001508,4]
[390768166,1760142643124,-1680.0,0.0001508,2]
[390768170,1760142643134,-195.0,0.00015081,2]
[390768173,1760142643143,-2000.0,0.00015081,2]
[390768176,1760142643157,-150.0,0.00015081,2]
[390768179,1760142643166,-250.0,0.00015081,2]
[390768182,1760142643176,-259.51677693,0.00015081,2]
[390768185,1760142643185,-311.93980376,0.00015082,2]
[390768187,1760142643195,-300.0,0.00015082,2]
[390768189,1760142643207,-195.0,0.00015082,2]
[390768191,1760142643217,-300.0,0.00015082,2]
[390768194,1760142643227,-2000.0,0.00015082,2]
[390768197,1760142643236,-300.0,0.00015083,2]
[390768199,1760142643246,-300.0,0.00015083,2]
[390768201,1760142643255,-300.0,0.00015083,2]
[390768203,1760142643264,-2000.0,0.00015083,2]
[390768205,1760142643274,-195.0,0.00015084,2]
[390768207,1760142643285,-150.0,0.00015084,2]
[390768209,1760142643297,-150.0,0.00015101,2]
[390768211,1760142643306,-150.0,0.00015101,2]
[390768213,1760142643315,-150.0,0.00015101,2]
[390768215,1760142643328,-150.0,0.00015101,2]
[390768217,1760142643337,-150.0,0.00015101,2]
[390768219,1760142643347,-150.0,0.00015101,2]
[390768221,1760142643357,-500.0,0.00015101,2]
[390768223,1760142643369,-150.0,0.00015101,2]
[390768225,1760142643379,-500.0,0.00015101,2]
[390768227,1760142643388,-150.0,0.00015101,2]
[390768229,1760142643399,-150.0,0.00015101,2]
[390768231,1760142643408,-150.0,0.00015101,2]
[390768246,1760142643543,-150.0,0.00015101,2]
[390768248,1760142643554,-500.0,0.00015101,2]
[390768250,1760142643564,-250.0,0.00015101,2]
[390768252,1760142643573,-150.0,0.00015101,2]
[390768254,1760142643583,-892.0,0.00015101,2]
[390768256,1760142643592,-500.0,0.00015101,2]
[390768258,1760142643602,-150.35041697,0.00015101,2]
[390768260,1760142643612,-200.72,0.00015103,2]
[390768262,1760142643622,-200.0,0.00015109,2]
[390768264,1760142643631,-200.0,0.00015109,2]
[390768266,1760142643641,-495.0,0.00015128,5]
[390768268,1760142643654,-2114.0,0.00015128,5]
[390768270,1760142643663,-500.0,0.00015128,5]
[390768272,1760142643673,-500.0,0.00015128,5]
[390768274,1760142643682,-480.0,0.00015128,5]
[390768275,1760142643691,-500.0,0.00015128,5]
[390768276,1760142643701,-1253.0,0.00015128,5]
[390768277,1760142643712,-532.0,0.00015128,5]
[390768278,1760142643721,-500.0,0.00015128,5]
[390768279,1760142643732,-426.0,0.00015128,5]
[390768280,1760142643741,-166.66,0.00015133,2]
[390768281,1760142643750,-200.0,0.0001515,2]
[390768282,1760142643760,-200.0,0.0001515,2]
[390768283,1760142643769,-200.0,0.0001515,2]
[390768284,1760142643778,-150.0,0.00015155,2]
[390768285,1760142643787,-150.0,0.00015155,2]
[390768286,1760142643796,-150.0,0.00015155,2]
[390768287,1760142643806,-152.41518177,0.00015155,2]
[390768289,1760142643815,-500.0,0.00015155,2]
[390768291,1760142643824,-150.0,0.00015155,2]
[390768293,1760142643834,-500.0,0.00015155,2]
[390768295,1760142643844,-892.0,0.00015155,2]
[390768297,1760142643854,-500.0,0.00015155,2]
[390768299,1760142643863,-495.0,0.00015183,5]
[390768301,1760142643874,-2114.0,0.00015183,5]
[390768303,1760142643884,-373.97473461,0.00015183,5]
[390768305,1760142643894,-500.0,0.00015183,5]
[390768307,1760142643907,-480.0,0.00015183,5]
[390768309,1760142643916,-159.30896312,0.00015183,5]
[390768311,1760142643926,-1253.0,0.00015183,5]
[390768313,1760142643935,-532.0,0.00015183,5]
[390768315,1760142643945,-500.0,0.00015183,5]
[390768317,1760142643955,-426.0,0.00015183,5]
[390768320,1760142643965,-200.0,0.0001521,2]
[390768321,1760142643976,-200.0,0.0001521,2]
[390768324,1760142643986,-200.0,0.0001521,2]
[390768325,1760142643995,-500.0,0.0001521,2]
[390768327,1760142644004,-200.0,0.0001521,2]
[390768329,1760142644013,-500.0,0.0001521,2]
[390768331,1760142644023,-892.0,0.0001521,2]
[390768333,1760142644032,-500.0,0.0001521,2]
[390768335,1760142644042,-500.0,0.00015233,2]
[390768337,1760142644051,-495.0,0.00015238,5]
[390768339,1760142644061,-2114.0,0.00015238,5]
[390768341,1760142644070,-500.0,0.00015238,5]
[390768343,1760142644080,-480.0,0.00015238,5]
[390768345,1760142644089,-1253.0,0.00015238,5]
[390768347,1760142644099,-532.0,0.00015238,5]
[390768349,1760142644108,-500.0,0.00015238,5]
[390768351,1760142644118,-426.0,0.00015238,5]
[390768353,1760142644128,-2223.06622,0.0001524,2]
[390768355,1760142644137,-500.0,0.00015265,2]
[390768357,1760142644148,-269.37458207,0.00015265,2]
[390768359,1760142644158,-892.0,0.00015265,2]
[390768361,1760142644168,-500.0,0.00015265,2]
[390768363,1760142644177,-1718.29,0.00015265,2]
[390768365,1760142644187,-500.0,0.00015273,2]
[390768367,1760142644197,-500.0,0.00015274,2]
[390768370,1760142644206,-500.0,0.00015274,2]
[390768371,1760142644217,-500.0,0.00015274,2]
[390768374,1760142644226,-2499.0,0.00015288,2]
[390768375,1760142644235,-495.0,0.00015293,5]
[390768377,1760142644244,-2114.0,0.00015293,5]
[390768379,1760142644254,-500.0,0.00015293,5]
[390768381,1760142644265,-480.0,0.00015293,5]
[390768384,1760142644276,-1253.0,0.00015293,5]
[390768385,1760142644291,-532.0,0.00015293,5]
[390768388,1760142644304,-500.0,0.00015293,5]
[390768390,1760142644315,-426.0,0.00015293,5]
[390768392,1760142644325,-300.0,0.00015298,2]
[390768394,1760142644334,-1517.64,0.000153,2]
[390768396,1760142644344,-200.0,0.00015301,2]
[390768398,1760142644353,-200.0,0.00015301,2]
[390768400,1760142644363,-200.0,0.00015301,2]
[390768402,1760142644373,-500.0,0.0001532,2]
[390768404,1760142644383,-892.0,0.0001532,2]